bitfinex/quotes_BTCUSD_20230120
["timestamp","ask_amount","ask_price","bid_price","bid_amount"]
[1674183645999,0.111,21100.0,21099.0,1.21838408]
[1674183646862,0.411,21100.0,21099.0,1.21838408]
[1674183647082,0.111,21100.0,21099.0,1.21838408]
[1674183647534,0.036,21100.0,21099.0,1.21638408]
[1674183649064,0.04,21100.0,21099.0,1.23938408]
[1674183653320,0.04,21100.0,21099.0,2.0590613]
[1674183653956,0.05249903,21100.0,21099.0,2.0590613]
[1674183654183,0.05249903,21100.0,21099.0,1.71334008]
[1674183655548,0.05249903,21100.0,21099.0,1.71322092]
[1674183662216,0.05249903,21100.0,21099.0,2.05900658]
[1674183662728,0.05249903,21100.0,21099.0,1.6431105]
[1674183662998,0.05249903,21100.0,21099.0,2.09484998]
[1674183664089,0.05249903,21100.0,21099.0,1.29732484]
[1674183664347,0.35249903,21100.0,21099.0,1.29732484]
[1674183664609,0.05249903,21100.0,21099.0,1.29732484]
[1674183669285,0.05249903,21100.0,21099.0,1.64502409]
[1674183669850,0.0523851,21100.0,21099.0,1.64502409]
[1674183670598,0.0523851,21100.0,21099.0,1.99068165]
[1674183673546,0.0523851,21100.0,21099.0,1.64502409]
[1674183675959,0.0523851,21100.0,21099.0,2.58159441]
[1674183677046,0.0523851,21100.0,21099.0,2.46797816]
[1674183677305,0.0523851,21100.0,21099.0,2.58159441]
[1674183677568,0.0523851,21100.0,21099.0,2.55859441]
[1674183677569,0.0483851,21100.0,21099.0,2.55859441]
[1674183677858,0.22562185,21103.0,21100.0,0.10399999]
[1674183678160,0.22562185,21103.0,21101.0,1.60592663]
[1674183678417,0.22562185,21103.0,21102.0,0.325492]
[1674183678670,0.22562185,21103.0,21102.0,0.79938]
[1674183680580,0.0474159,21103.0,21102.0,0.80338]
[1674183681417,0.0474159,21103.0,21102.0,1.277268]
[1674183690223,0.57116523,21103.0,21102.0,1.277268]
[1674183691022,0.0474159,21103.0,21102.0,1.277268]
[1674183691289,0.3474159,21103.0,21102.0,1.277268]
[1674183692312,0.0474159,21103.0,21102.0,1.277268]
[1674183693184,0.3474159,21103.0,21102.0,1.277268]
[1674183693670,0.3474159,21103.0,21102.0,1.06420007]
[1674183695489,0.59927054,21103.0,21102.0,1.06420007]
[1674183697344,0.0474159,21103.0,21102.0,1.06420007]
[1674183698399,0.0474159,21103.0,21102.0,1.51864092]
[1674183701029,0.0474159,21103.0,21102.0,1.84999906]
[1674183701295,0.0474159,21103.0,21102.0,1.5050483]
[1674183705784,0.0044159,21103.0,21102.0,1.5010483]
[1674183706054,0.0044159,21103.0,21102.0,1.5540483]
[1674183706055,0.0074159,21103.0,21102.0,1.5540483]
[1674183706311,0.0044159,21103.0,21102.0,1.5010483]
[1674183706575,0.0074159,21103.0,21102.0,1.5540483]
[1674183712255,0.0074159,21103.0,21102.0,1.55811888]
[1674183712720,0.0074159,21103.0,21102.0,2.02533226]
[1674183716873,0.0074159,21103.0,21102.0,1.68041345]
[1674183720978,0.3074159,21103.0,21102.0,1.68041345]
[1674183721232,0.3074159,21103.0,21102.0,0.526888]
[1674183721475,0.60668737,21103.0,21102.0,0.526888]
[1674183722267,0.0074159,21103.0,21102.0,0.526888]
[1674183722560,0.0074159,21103.0,21102.0,0.840305]
[1674183722758,0.0074159,21103.0,21102.0,0.835305]
[1674183733695,0.58978291,21103.0,21102.0,0.835305]
[1674183735615,0.0074159,21103.0,21102.0,0.835305]
[1674183737209,0.72529998,21103.0,21102.0,0.053]
[1674183737756,0.61181239,21103.0,21102.0,0.053]
[1674183738035,0.72529998,21103.0,21102.0,0.053]
[1674183738342,0.61181239,21103.0,21102.0,0.053]
[1674183738606,0.72529998,21103.0,21102.0,0.053]
[1674183743774,0.72029998,21103.0,21102.0,0.053]
[1674183747685,0.51381239,21103.0,21102.0,0.053]
[1674183748171,0.62229998,21103.0,21102.0,0.053]
[1674183748416,0.50881239,21103.0,21102.0,0.053]
[1674183749779,0.62229998,21103.0,21102.0,0.053]
[1674183751586,0.50881239,21103.0,21102.0,0.053]
[1674183754620,0.62229998,21103.0,21102.0,0.053]
[1674183755092,0.79251942,21103.0,21102.0,0.053]
[1674183755366,0.62229998,21103.0,21102.0,0.053]
[1674183755908,0.79251942,21103.0,21102.0,0.053]
[1674183756164,0.62229998,21103.0,21102.0,0.053]
[1674183757158,0.62229998,21103.0,21100.0,0.82772216]
[1674183757406,0.62329998,21103.0,21102.0,0.016]
[1674183757663,0.62229998,21103.0,21100.0,0.82772216]
[1674183757923,0.62329998,21103.0,21102.0,0.016]
[1674183758449,0.79351942,21103.0,21102.0,0.016]
[1674183758697,0.62329998,21103.0,21102.0,0.016]
[1674183758978,0.62229998,21103.0,21100.0,0.87872216]
[1674183759209,0.79651942,21103.0,21100.0,0.82772216]
[1674183759459,0.79751942,21103.0,21102.0,0.016]
[1674183759718,0.79251942,21103.0,21100.0,0.82772216]
[1674183760002,0.83351942,21103.0,21100.0,0.83272216]
[1674183760289,0.79251942,21103.0,21100.0,0.82772216]
[1674183760544,0.66329998,21103.0,21102.0,0.005]
[1674183760802,0.62229998,21103.0,21100.0,0.82772216]
[1674183761849,0.27880562,21102.0,21101.0,0.331313]
[1674183762098,0.57880562,21102.0,21100.0,0.82772216]
[1674183762381,0.57880562,21102.0,21100.0,0.83172216]
[1674183762933,0.3,21101.0,21100.0,0.82772216]
[1674183763187,0.27980562,21102.0,21100.0,1.14845216]
[1674183763445,0.27980562,21102.0,21100.0,0.84372216]
[1674183765779,0.3,21101.0,21100.0,0.84372216]
[1674183766302,0.27980562,21102.0,21100.0,0.84372216]
[1674183767099,0.27880562,21102.0,21100.0,0.82772216]
[1674183767607,0.3,21101.0,21100.0,0.82772216]
[1674183768335,0.3,21101.0,21100.0,0.87872216]
[1674183768337,0.304,21101.0,21100.0,0.87872216]
[1674183769101,0.004,21101.0,21100.0,0.87872216]
[1674183769832,0.304,21101.0,21100.0,0.87872216]
[1674183770817,0.304,21101.0,21100.0,0.40480716]
[1674183771106,0.304,21101.0,21100.0,0.051]
[1674183771355,0.56296251,21101.0,21100.0,0.05092737]
[1674183776475,0.56296251,21101.0,21100.0,0.37952237]
[1674183776942,0.304,21101.0,21100.0,0.37952237]
[1674183777191,0.004,21101.0,21100.0,0.37952237]
[1674183777442,0.004,21101.0,21100.0,0.47906812]
[1674183777925,0.304,21101.0,21100.0,0.47906812]
[1674183780251,0.004,21101.0,21100.0,0.47906812]
[1674183780525,0.004,21101.0,21100.0,0.68351772]
[1674183780526,0.304,21101.0,21100.0,0.68351772]
[1674183780778,0.004,21101.0,21100.0,0.68351772]
[1674183782837,0.004,21101.0,21100.0,0.78351772]
[1674183783093,0.004,21101.0,21100.0,1.12760798]
[1674183783365,0.004,21101.0,21100.0,1.71515723]
[1674183783611,0.004,21101.0,21100.0,2.66299505]
[1674183783866,0.004,21101.0,21100.0,3.8893206]
[1674183784147,0.004,21101.0,21100.0,4.25000771]
[1674183784403,0.004,21101.0,21100.0,3.78450124]
[1674183784719,0.004,21101.0,21100.0,2.66627077]
[1674183784956,0.004,21101.0,21100.0,2.55267567]
[1674183785477,0.00393626,21101.0,21100.0,2.66627077]
[1674183787409,0.00393626,21101.0,21100.0,3.78446139]
[1674183787553,0.00393626,21101.0,21100.0,2.83666342]
[1674183787817,0.00393626,21101.0,21100.0,2.66627077]
[1674183790368,0.00393626,21101.0,21100.0,2.55267567]
[1674183791133,0.00393626,21101.0,21100.0,2.66627077]
[1674183793159,0.00393626,21101.0,21100.0,2.55267567]
[1674183794493,0.00393626,21101.0,21100.0,2.66627077]
[1674183794758,0.00393626,21101.0,21100.0,2.73749071]
[1674183795133,0.00393626,21101.0,21100.0,2.29902205]
[1674183795331,0.00393626,21101.0,21100.0,3.88169902]
[1674183795604,0.00393626,21101.0,21100.0,4.32870588]
[1674183795852,0.00393626,21101.0,21100.0,3.76810392]
[1674183796106,0.00393626,21101.0,21100.0,2.83915744]
[1674183796626,0.00393626,21101.0,21100.0,3.88140701]
[1674183796898,0.00393626,21101.0,21100.0,3.88140802]
[1674183797152,0.00393626,21101.0,21100.0,2.29889351]
[1674183797701,0.00393626,21101.0,21100.0,2.74128233]
[1674183797964,0.00490373,21104.0,21100.0,2.29889351]
[1674183798220,0.00490373,21104.0,21101.0,1.22865074]
[1674183798473,0.00490373,21104.0,21102.0,1.60581103]
[1674183798733,0.00490373,21104.0,21103.0,0.319265]
[1674183799030,0.00490373,21104.0,21103.0,1.61095912]
[1674183799293,0.00490373,21104.0,21103.0,1.266997]
[1674183800083,0.00990373,21104.0,21103.0,1.266997]
[1674183800569,0.00490373,21104.0,21103.0,1.266997]
[1674183800570,0.00490373,21104.0,21103.0,1.305997]
[1674183800571,0.00890373,21104.0,21103.0,1.305997]
[1674183804142,0.02643856,21104.0,21103.0,1.305997]
[1674183807497,0.02643856,21104.0,21103.0,1.30591096]
[1674183814978,0.02643856,21104.0,21103.0,1.6919423]
[1674183819810,0.02643856,21104.0,21103.0,1.80540886]
[1674183822386,0.02643856,21104.0,21103.0,4.20905919]
[1674183822632,0.02643856,21104.0,21103.0,4.09559263]
[1674183822902,0.02643856,21104.0,21103.0,4.32258273]
[1674183823159,0.02643856,21104.0,21103.0,4.09559263]
[1674183823429,0.02643856,21104.0,21103.0,4.32258273]
[1674183823668,0.02643856,21104.0,21103.0,4.20918958]
[1674183824169,0.02643856,21104.0,21103.0,3.82315824]
[1674183824428,0.02643856,21104.0,21103.0,4.23478734]
[1674183824687,0.02643856,21104.0,21103.0,3.82233305]
[1674183824945,0.02643856,21104.0,21103.0,3.53916864]
[1674183825477,0.0044159,21105.0,21104.0,0.02620692]
[1674183825726,0.0044159,21105.0,21104.0,4.65423242]
[1674183826135,0.0044159,21105.0,21104.0,4.42710806]
[1674183826284,0.0044159,21105.0,21104.0,4.65409207]
[1674183826544,0.00400631,21105.0,21104.0,4.37018754]
[1674183826798,0.00400631,21105.0,21104.0,4.54042765]
[1674183827071,0.00500631,21105.0,21104.0,4.62142765]
[1674183827848,0.00500631,21105.0,21104.0,4.73509207]
[1674183828069,0.00500631,21105.0,21104.0,4.73497968]
[1674183828617,0.00500631,21105.0,21104.0,4.45107515]
[1674183828851,0.00500631,21105.0,21104.0,4.73497968]
[1674183829359,0.00500631,21105.0,21104.0,5.12449631]
[1674183829612,0.00500631,21105.0,21104.0,2.35096224]
[1674183830949,0.39800631,21105.0,21104.0,0.91040092]
[1674183831212,0.39700631,21105.0,21104.0,0.49624992]
[1674183831731,0.39800631,21105.0,21104.0,0.49624992]
[1674183832003,0.67729715,21105.0,21104.0,0.02240692]
[1674183833327,0.67729715,21105.0,21104.0,0.09740692]
[1674183833328,1.34564831,21105.0,21104.0,0.09740692]
[1674183833588,1.34564831,21105.0,21104.0,0.02240692]
[1674183833589,1.91773846,21105.0,21104.0,0.02240692]
[1674183833920,1.91773846,21105.0,21104.0,0.04440692]
[1674183834106,1.91773846,21105.0,21104.0,0.02240692]
[1674183834379,1.93473846,21105.0,21104.0,0.02540692]
[1674183834901,1.62255246,21105.0,21104.0,0.02540692]
[1674183840473,1.52955246,21105.0,21104.0,0.02540692]
[1674183840715,0.58191046,21105.0,21104.0,0.02540692]
[1674183842777,0.28191046,21105.0,21104.0,0.02540692]
[1674183843287,0.28191046,21105.0,21104.0,0.35926392]
[1674183845309,0.02100631,21105.0,21104.0,1.71399452]
[1674183847100,0.02100631,21105.0,21104.0,2.19119621]
[1674183860944,0.02043589,21105.0,21104.0,2.19119621]
[1674183864848,0.02043589,21105.0,21104.0,2.30464175]
[1674183864992,0.02043589,21105.0,21104.0,2.19119621]
[1674183871477,0.02043589,21105.0,21104.0,3.07246112]
[1674183871748,5.89e-06,21105.0,21104.0,4.67865076]
[1674183871999,5.89e-06,21105.0,21104.0,5.15996523]
[1674183872253,5.89e-06,21105.0,21104.0,4.76816742]
[1674183872632,0.00470759,21106.0,21105.0,0.58617411]
[1674183872787,0.00470759,21106.0,21105.0,0.68617411]
[1674183873043,0.00470759,21106.0,21105.0,4.11826813]
[1674183873578,0.00470759,21106.0,21105.0,4.43465576]
[1674183873579,7.59e-06,21106.0,21105.0,4.43465576]
[1674183874380,2.118e-05,21108.0,21106.0,0.58618]
[1674183874636,0.00470775,21109.0,21106.0,0.58618]
[1674183874637,0.00470775,21109.0,21107.0,2.34002148]
[1674183874858,0.00470775,21109.0,21108.0,0.91699569]
[1674183875187,0.00470775,21109.0,21108.0,1.86450369]
[1674183875896,0.00470775,21109.0,21108.0,1.95650369]
[1674183876484,1.55e-05,21110.0,21108.0,4.65133168]
[1674183876700,1.55e-05,21110.0,21109.0,3.29973629]
[1674183876951,1.55e-05,21110.0,21109.0,2.84503281]
[1674183877258,1.55e-05,21110.0,21109.0,2.67502946]
[1674183877561,1.55e-05,21110.0,21109.0,2.84503281]
[1674183877869,1.55e-05,21110.0,21109.0,3.29986639]
[1674183878129,1.55e-05,21110.0,21109.0,2.56169389]
[1674183878373,1.55e-05,21110.0,21109.0,2.67502946]
[1674183878628,1.55e-05,21110.0,21109.0,2.76702946]
[1674183878892,1.55e-05,21110.0,21109.0,2.67502946]
[1674183879149,1.55e-05,21110.0,21109.0,2.76702946]
[1674183879633,1.55e-05,21110.0,21109.0,4.45222028]
[1674183880485,0.00689617,21113.0,21111.0,0.4982]
[1674183880657,0.00689617,21113.0,21112.0,1.37308069]
[1674183880898,0.00689617,21113.0,21112.0,3.26773669]
[1674183881670,0.00689617,21113.0,21112.0,3.21896352]
[1674183882423,0.00689617,21113.0,21112.0,3.31096352]
[1674183882684,0.00689617,21113.0,21112.0,2.85309669]
[1674183883198,0.00689617,21113.0,21112.0,2.76109669]
[1674183883457,0.00689617,21113.0,21112.0,2.85309669]
[1674183884985,0.00689617,21113.0,21112.0,2.76109669]
[1674183885250,0.00689617,21113.0,21112.0,2.85309669]
[1674183885518,0.00689617,21113.0,21112.0,3.09702807]
[1674183885784,0.00689617,21113.0,21112.0,1.328567]
[1674183885785,0.30113152,21113.0,21112.0,1.328567]
[1674183886041,0.30113152,21113.0,21112.0,0.565724]
[1674183886042,0.60113152,21113.0,21112.0,0.565724]
[1674183886579,0.60113152,21113.0,21112.0,6e-05]
[1674183886847,0.60113152,21113.0,21112.0,0.03506]
[1674183887105,0.60113152,21113.0,21112.0,6e-05]
[1674183887628,0.92849452,21113.0,21112.0,6e-05]
[1674183887899,0.60113152,21113.0,21112.0,0.00606]
[1674183888415,0.60113152,21113.0,21112.0,6e-05]
[1674183888686,0.60101119,21113.0,21112.0,6e-05]
[1674183888934,0.60901119,21113.0,21112.0,0.00606]
[1674183889193,0.60101119,21113.0,21112.0,6e-05]
[1674183889438,0.60901119,21113.0,21112.0,0.00106]
[1674183889983,0.60101119,21113.0,21112.0,6e-05]
[1674183890793,0.60101119,21113.0,21109.0,0.91370325]
[1674183891013,0.3,21112.0,21109.0,0.91370325]
[1674183892103,0.52626915,21112.0,21109.0,0.99870325]
[1674183892350,0.23467897,21111.0,21109.0,0.91370325]
[1674183892609,0.3,21110.0,21109.0,0.99870325]
[1674183892874,0.3,21110.0,21109.0,0.43999025]
[1674183893130,0.3,21110.0,21109.0,0.08506]
[1674183893934,0.3,21110.0,21109.0,6e-05]
[1674183894170,0.301,21110.0,21109.0,0.08406]
[1674183894430,0.3,21110.0,21109.0,6e-05]
[1674183894910,0.301,21110.0,21109.0,0.08506]
[1674183895170,0.3,21110.0,21109.0,6e-05]
[1674183895708,0.308,21110.0,21109.0,0.00606]
[1674183896169,0.3,21110.0,21108.0,0.82869312]
[1674183896944,0.308,21110.0,21109.0,0.001]
[1674183897198,0.308,21110.0,21108.0,0.82869312]
[1674183897456,0.308,21110.0,21109.0,0.00029]
[1674183898835,0.23467897,21111.0,21109.0,0.45590471]
[1674183899114,0.23467897,21111.0,21109.0,0.45690471]
[1674183899115,0.308,21110.0,21109.0,0.45690471]
[1674183899932,0.308,21110.0,21109.0,0.45590471]
[1674183899933,0.3,21110.0,21109.0,0.45590471]
[1674183900156,0.3,21110.0,21109.0,0.45690471]
[1674183900421,0.23467897,21111.0,21109.0,0.45590471]
[1674183900676,0.3,21110.0,21109.0,0.45590471]
[1674183900939,0.008,21110.0,21109.0,0.45690471]
[1674183901214,0.23467897,21111.0,21109.0,0.45590471]
[1674183901479,0.23467897,21111.0,21109.0,0.45690471]
[1674183901480,0.24267897,21111.0,21109.0,0.45690471]
[1674183901733,0.3,21110.0,21109.0,0.45590471]
[1674183901994,0.3,21110.0,21109.0,0.49090471]
[1674183902523,0.23467897,21111.0,21109.0,0.49090471]
[1674183902776,0.3,21110.0,21109.0,0.45590471]
[1674183903040,0.3,21110.0,21109.0,0.45690471]
[1674183903267,0.3,21110.0,21109.0,0.45590471]
[1674183903522,0.3,21110.0,21109.0,0.49090471]
[1674183903931,0.23467897,21111.0,21109.0,0.49090471]
[1674183904365,0.78043884,21113.0,21109.0,0.68522568]
[1674183904616,0.3,21112.0,21110.0,0.48210897]
[1674183904883,1.0115267,21113.0,21111.0,0.319835]
[1674183905156,0.78043884,21113.0,21112.0,0.318611]
[1674183905426,0.30677584,21113.0,21111.0,0.44991473]
[1674183905689,0.30677584,21113.0,21111.0,0.92359973]
[1674183905690,0.00677584,21113.0,21111.0,0.92359973]
[1674183905955,0.00677584,21113.0,21112.0,0.313867]
[1674183906214,0.00677584,21113.0,21112.0,0.320867]
[1674183906215,0.01477584,21113.0,21112.0,0.320867]
[1674183906498,0.00677584,21113.0,21112.0,0.313867]
[1674183906757,0.00677584,21113.0,21112.0,0.7013639]
[1674183906758,0.01477584,21113.0,21112.0,0.7013639]
[1674183907266,0.01477584,21113.0,21112.0,1.2100279]
[1674183907829,0.01477584,21113.0,21112.0,0.822531]
[1674183908038,0.01477584,21113.0,21112.0,0.82241741]
[1674183909084,0.31477584,21113.0,21112.0,0.82241741]
[1674183909331,0.01477584,21113.0,21112.0,0.508664]
[1674183909592,0.31477584,21113.0,21112.0,0.508664]
[1674183910115,0.53937619,21113.0,21112.0,0.508664]
[1674183910646,0.53937619,21113.0,21112.0,0.03506]
[1674183910902,0.63523184,21113.0,21108.0,0.473734]
[1674183911167,0.63523184,21113.0,21108.0,1.42467269]
[1674183911168,1.00060154,21112.0,21108.0,1.42467269]
[1674183911475,0.68181254,21112.0,21109.0,0.473713]
[1674183911948,0.68754451,21112.0,21109.0,0.473713]
[1674183912406,0.69154451,21112.0,21109.0,0.473713]
[1674183912921,0.36176401,21111.0,21109.0,0.473713]
[1674183913174,0.36176401,21111.0,21109.0,0.477713]
[1674183913430,0.3,21110.0,21109.0,0.473713]
[1674183913695,0.3,21110.0,21109.0,0.491713]
[1674183915113,0.3,21110.0,21108.0,0.473734]
[1674183915384,0.3,21110.0,21109.0,0.051]
[1674183915666,0.3,21110.0,21108.0,0.37485463]
[1674183915922,0.304,21110.0,21109.0,0.051]
[1674183916183,0.3,21110.0,21108.0,0.37485463]
[1674183916449,0.304,21110.0,21108.0,0.42585463]
[1674183916708,0.88704898,21110.0,21107.0,0.47376]
[1674183916998,0.303896,21109.0,21107.0,0.47376]
[1674183917260,0.3,21108.0,21106.0,0.1]
[1674183917519,0.324552,21107.0,21105.0,0.81697577]
[1674183917795,0.631605,21106.0,21105.0,0.81697577]
[1674183918078,0.3,21106.0,21105.0,0.81697577]
[1674183918355,0.3,21106.0,21105.0,0.47437229]
[1674183918622,0.3,21106.0,21105.0,0.47837229]
[1674183918872,0.336,21106.0,21105.0,0.47437229]
[1674183919119,0.365,21106.0,21105.0,0.47537229]
[1674183919407,0.365,21106.0,21105.0,0.47437229]
[1674183919666,0.371,21106.0,21105.0,0.47837229]
[1674183921801,0.366,21106.0,21105.0,0.47837229]
[1674183922787,0.066,21106.0,21105.0,0.88452956]
[1674183925314,0.066,21106.0,21105.0,1.21829656]
[1674183930941,0.066,21106.0,21105.0,1.69211756]
[1674183932412,0.366,21106.0,21105.0,1.69211756]
[1674183932670,0.366,21106.0,21105.0,1.35835056]
[1674183933187,0.39352364,21106.0,21105.0,1.35835056]
[1674183935564,0.39352364,21106.0,21105.0,0.88454856]
[1674183936555,0.39352364,21106.0,21105.0,1.20696656]
[1674183937091,0.39352364,21106.0,21105.0,0.88454856]
[1674183944335,0.39352364,21106.0,21105.0,0.88397827]
[1674183945324,0.39352364,21106.0,21105.0,0.41015727]
[1674183947271,0.39352364,21106.0,21105.0,0.004]
[1674183948053,0.74822187,21106.0,21105.0,0.004]
[1674183948313,0.44822187,21106.0,21105.0,0.004]
[1674183948577,0.74822187,21106.0,21105.0,0.004]
[1674183951205,0.7476518,21106.0,21105.0,0.004]
[1674183954510,1.18939939,21106.0,21105.0,0.004]
[1674183954767,1.80873539,21106.0,21105.0,0.004]
[1674183955034,2.28480183,21106.0,21105.0,0.004]
[1674183955292,1.80873539,21106.0,21105.0,0.004]
[1674183955773,2.32925583,21106.0,21105.0,0.004]
[1674183956066,2.15903639,21106.0,21105.0,0.004]
[1674183956327,1.80873539,21106.0,21105.0,0.004]
[1674183957833,2.12594239,21106.0,21105.0,0.004]
[1674183958286,1.80873539,21106.0,21105.0,0.004]
[1674183960742,1.6952478,21106.0,21105.0,0.004]
[1674183961469,1.6602478,21106.0,21103.0,0.00943745]
[1674183961728,0.3,21105.0,21103.0,0.00943745]
[1674183962704,0.3,21105.0,21103.0,0.34917638]
[1674183962971,0.90548726,21106.0,21103.0,0.34917638]
[1674183963228,0.90548726,21106.0,21104.0,0.70294057]
[1674183963229,0.007,21105.0,21104.0,0.70294057]
[1674183963487,0.007,21105.0,21104.0,0.69867757]
[1674183964261,0.91105633,21106.0,21104.0,0.69867757]
[1674183964545,0.91805633,21106.0,21105.0,0.320565]
[1674183964789,0.91805633,21106.0,21104.0,0.37705357]
[1674183964790,1.21105633,21106.0,21104.0,0.37705357]
[1674183965056,0.91105633,21106.0,21104.0,0.37705357]
[1674183965537,0.94005633,21106.0,21104.0,0.37705357]
[1674183965792,0.91105633,21106.0,21104.0,0.37705357]
[1674183966091,0.52424233,21106.0,21104.0,0.37705357]
[1674183966348,0.52424233,21106.0,21105.0,0.320471]
[1674183966611,0.85324233,21106.0,21104.0,0.37805357]
[1674183967401,0.73724233,21106.0,21105.0,0.001]
[1674183967628,0.73724233,21106.0,21104.0,0.85089257]
[1674183967890,0.76624233,21106.0,21105.0,0.316476]
[1674183968150,0.73724233,21106.0,21105.0,0.316476]
[1674183968462,0.74624233,21106.0,21105.0,0.319476]
[1674183968716,0.73724233,21106.0,21105.0,0.316476]
[1674183968969,0.46624233,21106.0,21105.0,0.317476]
[1674183969451,0.09252364,21106.0,21105.0,0.317476]
[1674183969746,0.06352364,21106.0,21105.0,0.7348028]
[1674183970214,0.06352364,21106.0,21105.0,1.2086238]
[1674183970469,0.07252364,21106.0,21105.0,1.2116238]
[1674183970729,0.06352364,21106.0,21105.0,1.2086238]
[1674183970989,0.09252364,21106.0,21105.0,1.2096238]
[1674183971239,0.06352364,21106.0,21105.0,1.2086238]
[1674183971512,0.07252364,21106.0,21105.0,1.6854448]
[1674183971769,0.06352364,21106.0,21105.0,1.79559046]
[1674183972026,0.07152364,21106.0,21105.0,1.79859046]
[1674183972585,0.07152364,21106.0,21105.0,1.6854448]
[1674183973363,0.06352364,21106.0,21105.0,1.6824448]
[1674183973842,0.07152364,21106.0,21105.0,1.6854448]
[1674183973844,0.06352364,21106.0,21105.0,1.6824448]
[1674183974361,0.06352364,21106.0,21105.0,1.6854448]
[1674183974362,0.07252364,21106.0,21105.0,1.6854448]
[1674183975139,0.06352364,21106.0,21105.0,1.6824448]
[1674183975410,0.07152364,21106.0,21105.0,1.6854448]
[1674183976240,0.06352364,21106.0,21105.0,1.6824448]
[1674183976434,0.07252364,21106.0,21105.0,1.6854448]
[1674183976969,0.07252364,21106.0,21105.0,1.6824448]
[1674183977228,0.06352364,21106.0,21105.0,1.6824448]
[1674183977513,0.06352364,21106.0,21105.0,1.6854448]
[1674183977514,0.07152364,21106.0,21105.0,1.6854448]
[1674183977776,0.06352364,21106.0,21105.0,1.6854448]
[1674183978019,0.07252364,21106.0,21105.0,1.6854448]
[1674183979061,0.06352364,21106.0,21105.0,1.6824448]
[1674183979351,0.07152364,21106.0,21105.0,1.6854448]
[1674183979640,0.07152364,21106.0,21105.0,1.6824448]
[1674183979641,0.06352364,21106.0,21105.0,1.6824448]
[1674183979890,0.07252364,21106.0,21105.0,1.7971448]
[1674183980660,0.06352364,21106.0,21105.0,1.7941448]
[1674183980917,0.07152364,21106.0,21105.0,1.7971448]
[1674183981990,0.07152364,21106.0,21105.0,1.6854448]
[1674183992194,0.07152364,21106.0,21105.0,1.7977448]
[1674183992419,0.07143164,21106.0,21105.0,1.7977448]
[1674183996042,0.07143164,21106.0,21105.0,2.38714649]
[1674183996557,0.07143164,21106.0,21105.0,2.50029215]
[1674183997355,0.07143164,21106.0,21105.0,2.67001053]
[1674183997618,0.07143164,21106.0,21105.0,2.50029215]
[1674183997873,0.07143164,21106.0,21105.0,2.67001053]
[1674183998663,0.07143164,21106.0,21105.0,3.61755324]
[1674183998925,0.07143164,21106.0,21105.0,2.67001053]
[1674183999452,0.07143164,21106.0,21105.0,3.61755212]
[1674183999972,0.07143164,21106.0,21105.0,3.95095586]
[1674184001090,0.07143164,21106.0,21105.0,4.17724203]
[1674184001794,0.07143164,21106.0,21105.0,4.00752365]
[1674184002570,0.07143164,21106.0,21105.0,4.17777607]
[1674184003092,0.07143164,21106.0,21105.0,4.06499399]
[1674184004113,0.07143164,21106.0,21105.0,3.61845287]
[1674184004376,0.07143164,21106.0,21105.0,4.06566675]
[1674184004633,0.07143164,21106.0,21105.0,3.61845287]
[1674184004969,0.07143164,21106.0,21105.0,2.50065058]
[1674184005422,0.07143164,21106.0,21105.0,2.27484649]
[1674184009204,0.07143164,21106.0,21105.0,2.38835058]
[1674184009950,0.07143164,21106.0,21105.0,2.27484649]
[1674184011829,0.72467112,21106.0,21105.0,0.950642]
[1674184012718,0.72467112,21106.0,21105.0,0.476821]
[1674184013384,0.72467112,21106.0,21105.0,0.003]
[1674184014166,0.71667112,21106.0,21104.0,0.473839]
[1674184014414,0.71767112,21106.0,21105.0,0.084]
[1674184019369,0.41755978,21105.0,21104.0,0.31046409]
[1674184019625,0.71755978,21105.0,21104.0,0.31046409]
[1674184020522,0.75355978,21105.0,21104.0,0.31046409]
[1674184020688,0.76155978,21105.0,21104.0,0.31746409]
[1674184020951,0.76155978,21105.0,21104.0,0.64421809]
[1674184021201,0.46155978,21105.0,21104.0,0.63535209]
[1674184021973,0.45155978,21105.0,21104.0,0.63535209]
[1674184022217,0.75155978,21105.0,21104.0,0.63535209]
[1674184025317,0.45155978,21105.0,21104.0,0.63535209]
[1674184026358,0.75155978,21105.0,21104.0,0.63535209]
[1674184028485,0.044,21105.0,21104.0,0.63535209]
[1674184029779,0.044,21105.0,21104.0,1.06325309]
[1674184030044,0.044,21105.0,21104.0,1.76079609]
[1674184030304,0.044,21105.0,21104.0,2.22086411]
[1674184030569,0.044,21105.0,21104.0,2.3343682]
[1674184030864,0.04349,21105.0,21104.0,2.3343682]
[1674184031131,0.04349,21105.0,21104.0,2.50462062]
[1674184031384,0.04349,21105.0,21104.0,2.3343682]
[1674184031640,0.04349,21105.0,21104.0,2.50462062]
[1674184031897,0.04349,21105.0,21104.0,2.3343682]
[1674184032194,0.07227685,21105.0,21104.0,2.50462062]
[1674184032451,0.07227685,21105.0,21104.0,3.49858306]
[1674184032731,0.07227685,21105.0,21104.0,2.55095702]
[1674184032991,0.07227685,21105.0,21104.0,2.3807046]
[1674184033728,0.07227685,21105.0,21104.0,2.55095702]
[1674184033987,0.07227685,21105.0,21104.0,2.3807046]
[1674184035814,0.07227685,21105.0,21104.0,2.26720051]
[1674184036301,0.07227685,21105.0,21104.0,2.3807046]
[1674184036560,0.07227685,21105.0,21104.0,2.26720051]
[1674184037623,0.07227685,21105.0,21104.0,2.3807046]
[1674184037888,0.07227685,21105.0,21104.0,2.26720051]
[1674184040238,0.07170659,21105.0,21104.0,2.26720051]
[1674184042511,0.07170659,21105.0,21104.0,2.3807046]
[1674184043032,0.07170659,21105.0,21104.0,3.49856484]
[1674184043279,0.07170659,21105.0,21104.0,3.49856569]
[1674184043526,0.07170659,21105.0,21104.0,3.73198004]
[1674184044287,0.07170659,21105.0,21104.0,2.1570046]
[1674184045260,0.07170659,21105.0,21104.0,3.27486779]
[1674184047009,0.07170659,21105.0,21104.0,3.7318324]
[1674184047260,0.07170659,21105.0,21104.0,3.73186656]
[1674184047515,0.07170659,21105.0,21104.0,3.61832831]
[1674184047765,0.07170659,21105.0,21104.0,3.73186894]
[1674184047990,0.07170659,21105.0,21104.0,3.73186855]
[1674184048770,0.07170659,21105.0,21104.0,3.27490258]
[1674184049521,0.07170659,21105.0,21104.0,3.73187061]
[1674184050284,0.07170659,21105.0,21104.0,3.27490258]
[1674184050541,0.07170659,21105.0,21104.0,3.73186426]
[1674184050799,0.07170659,21105.0,21104.0,3.61832729]
[1674184051763,0.07170659,21105.0,21104.0,3.73186436]
[1674184052288,0.07170659,21105.0,21104.0,3.95631346]
[1674184052769,0.07170659,21105.0,21104.0,3.84356016]